[Event "Titled Tuesday Blitz August 08 Early 2023"]
[White "Gholami Orimi, Mahdi"]
[Black "Firouzja, Alireza"]
[WhiteFideId "12558486"]
[BlackFideId "12573981"]
[WhiteElo "2911"]
[BlackElo "3098"]
[Result "1-0"]
[Round "11"]
[TimeControl "180+1"]
[Date "2023.08.08"]
[WhiteClock "0:00:14"]
[BlackClock "0:00:00"]
[Board "5"]

1. d4 {[%clk 0:03:00]}  Nf6 {[%clk 0:02:58]} 2. c4 {[%clk 0:03:01]}  g6 {[%clk 0:02:58]} 3. g3 {[%clk 0:03:01]}  Bg7 {[%clk 0:02:59]} 4. Bg2 {[%clk 0:03:01]}  O-O {[%clk 0:03:00]} 5. Nc3 {[%clk 0:03:02]}  d6 {[%clk 0:03:00]} 6. Nf3 {[%clk 0:03:02]}  Nbd7 {[%clk 0:03:01]} 7. O-O {[%clk 0:03:03]}  e5 {[%clk 0:03:02]} 8. e4 {[%clk 0:03:04]}  c6 {[%clk 0:03:02]} 9. h3 {[%clk 0:03:04]}  Qb6 {[%clk 0:03:02]} 10. c5 {[%clk 0:03:04]}  dxc5 {[%clk 0:03:02]} 11. dxe5 {[%clk 0:03:04]}  Ne8 {[%clk 0:03:03]} 12. e6 {[%clk 0:03:03]}  fxe6 {[%clk 0:03:04]} 13. Ng5 {[%clk 0:02:42]}  Ne5 {[%clk 0:03:03]} 14. f4 {[%clk 0:02:41]}  Nf7 {[%clk 0:03:02]} 15. Nxf7 {[%clk 0:02:41]}  Bd4+ {[%clk 0:03:03]} 16. Kh2 {[%clk 0:02:41]}  Rxf7 {[%clk 0:03:03]} 17. e5 {[%clk 0:02:41]}  Nc7 {[%clk 0:03:04]} 18. Ne4 {[%clk 0:02:39]}  Nd5 {[%clk 0:03:05]} 19. a4 {[%clk 0:02:38]}  a5 {[%clk 0:03:04]} 20. h4 {[%clk 0:02:37]}  Qd8 {[%clk 0:02:55]} 21. h5 {[%clk 0:02:37]}  b6 {[%clk 0:02:45]} 22. Ra3 {[%clk 0:02:33]}  Ba6 {[%clk 0:02:37]} 23. Qg4 {[%clk 0:02:02]}  Bxf1 {[%clk 0:02:22]} 24. Bxf1 {[%clk 0:02:03]}  Qe7 {[%clk 0:02:14]} 25. Bh3 {[%clk 0:01:58]}  Rg7 {[%clk 0:01:59]} 26. h6 {[%clk 0:01:52]}  Rf7 {[%clk 0:01:59]} 27. Qxe6 {[%clk 0:01:53]}  Kh8 {[%clk 0:01:41]} 28. Qxc6 {[%clk 0:01:47]}  Rd8 {[%clk 0:01:39]} 29. Be6 {[%clk 0:01:44]}  Nb4 {[%clk 0:01:37]} 30. Qxb6 {[%clk 0:01:42]}  c4 {[%clk 0:00:44]} 31. Qxa5 {[%clk 0:01:40]}  Nc6 {[%clk 0:00:44]} 32. Qb5 {[%clk 0:01:40]}  Nxe5 {[%clk 0:00:18]} 33. fxe5 {[%clk 0:01:32]}  Qxe6 {[%clk 0:00:17]} 34. Bf4 {[%clk 0:01:20]}  Rxf4 {[%clk 0:00:10]} 35. gxf4 {[%clk 0:01:12]}  Qf5 {[%clk 0:00:09]} 36. Ng3 {[%clk 0:01:06]}  Qxf4 {[%clk 0:00:09]} 37. Qa5 {[%clk 0:00:20]}  Qxh6+ {[%clk 0:00:06]} 38. Kg2 {[%clk 0:00:20]}  Rf8 {[%clk 0:00:03]} 39. Rf3 {[%clk 0:00:18]}  Rxf3 {[%clk 0:00:02]} 40. Kxf3 {[%clk 0:00:18]}  Qe3+ {[%clk 0:00:00]} 41. Kg2 {[%clk 0:00:14]} 1-0


[Site "https://www.chess.com"]

[Event "Titled Tuesday Blitz August 08 Early 2023"]
[White "Sarana, Alexey"]
[Black "Khubukshanov, Erdem"]
[WhiteFideId "24133795"]
[BlackFideId "54114527"]
[WhiteElo "3081"]
[BlackElo "2859"]
[Result "1-0"]
[Round "11"]
[TimeControl "180+1"]
[Date "2023.08.08"]
[WhiteClock "0:00:28"]
[BlackClock "0:00:08"]
[Board "6"]

1. d4 {[%clk 0:03:00]}  d5 {[%clk 0:02:59]} 2. c4 {[%clk 0:03:01]}  e6 {[%clk 0:03:00]} 3. Nc3 {[%clk 0:03:01]}  Nf6 {[%clk 0:02:57]} 4. cxd5 {[%clk 0:03:01]}  exd5 {[%clk 0:02:57]} 5. Bf4 {[%clk 0:03:02]}  Bd6 {[%clk 0:02:53]} 6. Bxd6 {[%clk 0:03:02]}  Qxd6 {[%clk 0:02:53]} 7. e3 {[%clk 0:03:03]}  c6 {[%clk 0:02:48]} 8. Bd3 {[%clk 0:03:02]}  O-O {[%clk 0:02:48]} 9. h3 {[%clk 0:03:03]}  Re8 {[%clk 0:02:47]} 10. Nf3 {[%clk 0:03:03]}  Nbd7 {[%clk 0:02:45]} 11. O-O {[%clk 0:03:03]}  Ne4 {[%clk 0:02:42]} 12. Qc2 {[%clk 0:03:03]}  Nxc3 {[%clk 0:02:40]} 13. bxc3 {[%clk 0:03:03]}  h6 {[%clk 0:02:32]} 14. c4 {[%clk 0:03:03]}  dxc4 {[%clk 0:02:28]} 15. Bxc4 {[%clk 0:03:03]}  Nb6 {[%clk 0:02:26]} 16. Bb3 {[%clk 0:03:03]}  Be6 {[%clk 0:02:26]} 17. Rfc1 {[%clk 0:02:54]}  Bd5 {[%clk 0:02:14]} 18. Ne5 {[%clk 0:02:53]}  Rad8 {[%clk 0:02:00]} 19. Qf5 {[%clk 0:02:50]}  Re7 {[%clk 0:01:56]} 20. Rab1 {[%clk 0:02:45]}  g6 {[%clk 0:01:54]} 21. Qf4 {[%clk 0:02:44]}  Kg7 {[%clk 0:01:54]} 22. h4 {[%clk 0:02:35]}  Qe6 {[%clk 0:01:28]} 23. Ng4 {[%clk 0:02:27]}  h5 {[%clk 0:01:23]} 24. Qh6+ {[%clk 0:02:23]}  Kg8 {[%clk 0:01:23]} 25. Ne5 {[%clk 0:02:24]}  Qf6 {[%clk 0:01:22]} 26. Qg5 {[%clk 0:02:16]}  Kg7 {[%clk 0:01:20]} 27. Qg3 {[%clk 0:02:04]}  Nc8 {[%clk 0:01:10]} 28. Nd3 {[%clk 0:01:56]}  Be4 {[%clk 0:01:09]} 29. Nf4 {[%clk 0:01:55]}  Kf8 {[%clk 0:01:04]} 30. Bc2 {[%clk 0:01:54]}  Nd6 {[%clk 0:01:03]} 31. Qg5 {[%clk 0:01:18]}  Qxg5 {[%clk 0:00:59]} 32. hxg5 {[%clk 0:01:19]}  Bxc2 {[%clk 0:01:00]} 33. Rxc2 {[%clk 0:01:19]}  Ne4 {[%clk 0:01:01]} 34. Rcb2 {[%clk 0:01:19]}  b6 {[%clk 0:00:53]} 35. Rc1 {[%clk 0:01:19]}  Rd6 {[%clk 0:00:53]} 36. Rbc2 {[%clk 0:01:17]}  Rc7 {[%clk 0:00:53]} 37. Nh3 {[%clk 0:01:12]}  c5 {[%clk 0:00:52]} 38. f3 {[%clk 0:01:11]}  Ng3 {[%clk 0:00:50]} 39. dxc5 {[%clk 0:00:58]}  bxc5 {[%clk 0:00:49]} 40. Rxc5 {[%clk 0:00:54]}  Rxc5 {[%clk 0:00:34]} 41. Rxc5 {[%clk 0:00:55]}  Rd1+ {[%clk 0:00:34]} 42. Kf2 {[%clk 0:00:55]}  h4 {[%clk 0:00:34]} 43. e4 {[%clk 0:00:51]}  Rd2+ {[%clk 0:00:33]} 44. Ke3 {[%clk 0:00:50]}  Rxa2 {[%clk 0:00:28]} 45. Nf4 {[%clk 0:00:42]}  Nf1+ {[%clk 0:00:19]} 46. Kd3 {[%clk 0:00:41]}  Rd2+ {[%clk 0:00:19]} 47. Kc3 {[%clk 0:00:41]}  Rd6 {[%clk 0:00:18]} 48. Rc8+ {[%clk 0:00:38]}  Kg7 {[%clk 0:00:18]} 49. Nd5 {[%clk 0:00:35]}  a5 {[%clk 0:00:11]} 50. Nf6 {[%clk 0:00:35]}  Rxf6 {[%clk 0:00:11]} 51. gxf6+ {[%clk 0:00:36]}  Kxf6 {[%clk 0:00:12]} 52. Kd3 {[%clk 0:00:36]}  Kg5 {[%clk 0:00:06]} 53. Rf8 {[%clk 0:00:33]}  f5 {[%clk 0:00:05]} 54. exf5 {[%clk 0:00:32]}  gxf5 {[%clk 0:00:06]} 55. Ke2 {[%clk 0:00:30]}  Ng3+ {[%clk 0:00:04]} 56. Kf2 {[%clk 0:00:30]}  Kf4 {[%clk 0:00:03]} 57. Rh8 {[%clk 0:00:28]}  Kg5 {[%clk 0:00:03]} 58. Ra8 {[%clk 0:00:28]}  Nh1+ {[%clk 0:00:03]} 59. Kg1 {[%clk 0:00:28]}  Ng3 {[%clk 0:00:04]} 60. Rxa5 {[%clk 0:00:28]}  Ne2+ {[%clk 0:00:05]} 61. Kf2 {[%clk 0:00:28]}  Nf4 {[%clk 0:00:06]} 62. Ra8 {[%clk 0:00:28]}  Nd3+ {[%clk 0:00:06]} 63. Kf1 {[%clk 0:00:28]}  Ne1 {[%clk 0:00:07]} 64. Rg8+ {[%clk 0:00:28]}  Kf4 {[%clk 0:00:07]} 65. Kxe1 {[%clk 0:00:29]}  h3 {[%clk 0:00:07]} 66. Kf2 {[%clk 0:00:29]}  hxg2 {[%clk 0:00:07]} 67. Rxg2 {[%clk 0:00:28]}  Ke5 {[%clk 0:00:08]} 1-0


[Site "https://www.chess.com"]

[Event "Titled Tuesday Blitz August 08 Early 2023"]
[White "Remizov, Yaroslav"]
[Black "Aronian, Levon"]
[WhiteFideId "34134015"]
[BlackFideId "13300474"]
[WhiteElo "2847"]
[BlackElo "3041"]
[Result "0-1"]
[Round "11"]
[TimeControl "180+1"]
[Date "2023.08.08"]
[WhiteClock "0:00:00"]
[BlackClock "0:01:13"]
[Board "7"]

1. e4 {[%clk 0:02:58]}  c5 {[%clk 0:03:00]} 2. Nf3 {[%clk 0:02:58]}  e6 {[%clk 0:03:00]} 3. c3 {[%clk 0:02:48]}  d5 {[%clk 0:02:59]} 4. exd5 {[%clk 0:02:48]}  Qxd5 {[%clk 0:02:59]} 5. d4 {[%clk 0:02:48]}  Nf6 {[%clk 0:03:00]} 6. Na3 {[%clk 0:02:42]}  Nc6 {[%clk 0:02:54]} 7. Nb5 {[%clk 0:02:41]}  Qd8 {[%clk 0:02:53]} 8. dxc5 {[%clk 0:02:36]}  Bxc5 {[%clk 0:02:52]} 9. Qxd8+ {[%clk 0:02:31]}  Kxd8 {[%clk 0:02:53]} 10. Bg5 {[%clk 0:02:23]}  a6 {[%clk 0:02:47]} 11. O-O-O+ {[%clk 0:02:23]}  Ke7 {[%clk 0:02:47]} 12. Nbd4 {[%clk 0:02:22]}  Bd7 {[%clk 0:02:46]} 13. Bc4 {[%clk 0:02:00]}  Rhc8 {[%clk 0:02:42]} 14. Rhe1 {[%clk 0:01:58]}  Kf8 {[%clk 0:02:40]} 15. Bxf6 {[%clk 0:01:41]}  gxf6 {[%clk 0:02:40]} 16. Nb3 {[%clk 0:01:41]}  Bxf2 {[%clk 0:02:37]} 17. Re2 {[%clk 0:01:37]}  Nb8 {[%clk 0:02:37]} 18. Bxe6 {[%clk 0:01:01]}  fxe6 {[%clk 0:02:37]} 19. Rxf2 {[%clk 0:01:02]}  Ke7 {[%clk 0:02:37]} 20. g4 {[%clk 0:00:52]}  Rg8 {[%clk 0:02:32]} 21. g5 {[%clk 0:00:41]}  fxg5 {[%clk 0:02:32]} 22. Ne5 {[%clk 0:00:42]}  Be8 {[%clk 0:02:32]} 23. Na5 {[%clk 0:00:38]}  b5 {[%clk 0:02:26]} 24. Ng4 {[%clk 0:00:14]}  Nc6 {[%clk 0:02:18]} 25. Nb7 {[%clk 0:00:03]}  Bh5 {[%clk 0:02:14]} 26. Rg1 {[%clk 0:00:02]}  Bxg4 {[%clk 0:02:11]} 27. Rxg4 {[%clk 0:00:03]}  Ne5 {[%clk 0:02:12]} 28. Rg3 {[%clk 0:00:03]}  g4 {[%clk 0:02:10]} 29. Re2 {[%clk 0:00:03]}  Nf3 {[%clk 0:02:08]} 30. Nc5 {[%clk 0:00:03]}  Rg6 {[%clk 0:01:57]} 31. h3 {[%clk 0:00:03]}  h5 {[%clk 0:01:57]} 32. hxg4 {[%clk 0:00:03]}  hxg4 {[%clk 0:01:57]} 33. Re4 {[%clk 0:00:04]}  Rag8 {[%clk 0:01:56]} 34. Nd3 {[%clk 0:00:04]}  Rg5 {[%clk 0:01:48]} 35. Nf4 {[%clk 0:00:03]}  Re5 {[%clk 0:01:45]} 36. Rxe5 {[%clk 0:00:02]}  Nxe5 {[%clk 0:01:45]} 37. Kc2 {[%clk 0:00:01]}  Kf6 {[%clk 0:01:44]} 38. Rg2 {[%clk 0:00:02]}  Kf5 {[%clk 0:01:43]} 39. Ne2 {[%clk 0:00:02]}  Nf3 {[%clk 0:01:43]} 40. Kd3 {[%clk 0:00:03]}  Ne5+ {[%clk 0:01:29]} 41. Ke3 {[%clk 0:00:03]}  Nc4+ {[%clk 0:01:29]} 42. Kf2 {[%clk 0:00:03]}  Nxb2 {[%clk 0:01:27]} 43. Nd4+ {[%clk 0:00:03]}  Kf6 {[%clk 0:01:25]} 44. Kg3 {[%clk 0:00:02]}  Nc4 {[%clk 0:01:25]} 45. Rf2+ {[%clk 0:00:03]}  Ke7 {[%clk 0:01:25]} 46. Re2 {[%clk 0:00:03]}  e5 {[%clk 0:01:26]} 47. Nc6+ {[%clk 0:00:03]}  Kd6 {[%clk 0:01:25]} 48. Nb4 {[%clk 0:00:04]}  a5 {[%clk 0:01:25]} 49. Nd3 {[%clk 0:00:04]}  Kd5 {[%clk 0:01:20]} 50. Nf2 {[%clk 0:00:04]}  Nd6 {[%clk 0:01:18]} 51. Rd2+ {[%clk 0:00:03]}  Ke6 {[%clk 0:01:18]} 52. Kg2 {[%clk 0:00:04]}  g3 {[%clk 0:01:16]} 53. Nd3 {[%clk 0:00:02]}  Nf5 {[%clk 0:01:15]} 54. Nc5+ {[%clk 0:00:03]}  Ke7 {[%clk 0:01:13]} 55. Rd7+ {[%clk 0:00:03]}  Ke8 {[%clk 0:01:13]} 56. Ra7 {[%clk 0:00:00]}  Nh4+ {[%clk 0:01:13]} 0-1


[Site "https://www.chess.com"]

[Event "Titled Tuesday Blitz August 08 Early 2023"]
[White "Grischuk, Alexander"]
[Black "Vokhidov, Shamsiddin"]
[WhiteFideId "4126025"]
[BlackFideId "14204223"]
[WhiteElo "3033"]
[BlackElo "2900"]
[Result "1-0"]
[Round "11"]
[TimeControl "180+1"]
[Date "2023.08.08"]
[WhiteClock "0:00:22"]
[BlackClock "0:00:09"]
[Board "11"]

1. e4 {[%clk 0:03:00]}  c5 {[%clk 0:02:59]} 2. Nf3 {[%clk 0:02:59]}  e6 {[%clk 0:02:59]} 3. b3 {[%clk 0:02:58]}  Nc6 {[%clk 0:02:58]} 4. Bb2 {[%clk 0:02:54]}  a6 {[%clk 0:02:58]} 5. g3 {[%clk 0:02:53]}  d5 {[%clk 0:02:53]} 6. exd5 {[%clk 0:02:53]}  exd5 {[%clk 0:02:54]} 7. Qe2+ {[%clk 0:02:50]}  Be6 {[%clk 0:02:49]} 8. Bg2 {[%clk 0:02:43]}  Nf6 {[%clk 0:02:34]} 9. Ng5 {[%clk 0:02:41]}  Qd7 {[%clk 0:02:34]} 10. O-O {[%clk 0:02:38]}  O-O-O {[%clk 0:02:30]} 11. Nxe6 {[%clk 0:02:37]}  fxe6 {[%clk 0:02:24]} 12. Re1 {[%clk 0:02:29]}  Re8 {[%clk 0:02:23]} 13. d3 {[%clk 0:02:17]}  Bd6 {[%clk 0:02:11]} 14. Nd2 {[%clk 0:02:16]}  h5 {[%clk 0:01:55]} 15. Nf3 {[%clk 0:02:14]}  e5 {[%clk 0:01:36]} 16. c4 {[%clk 0:02:08]}  Nd4 {[%clk 0:01:31]} 17. Bxd4 {[%clk 0:02:06]}  exd4 {[%clk 0:01:29]} 18. Qd2 {[%clk 0:02:03]}  Rxe1+ {[%clk 0:01:14]} 19. Rxe1 {[%clk 0:02:02]}  Re8 {[%clk 0:01:08]} 20. cxd5 {[%clk 0:01:58]}  Rxe1+ {[%clk 0:01:06]} 21. Qxe1 {[%clk 0:01:57]}  Qf5 {[%clk 0:00:59]} 22. Nd2 {[%clk 0:01:28]}  b5 {[%clk 0:00:18]} 23. Ne4 {[%clk 0:01:09]}  Kd7 {[%clk 0:00:18]} 24. Qa5 {[%clk 0:01:04]}  Nxe4 {[%clk 0:00:18]} 25. Bxe4 {[%clk 0:01:04]}  Qg4 {[%clk 0:00:15]} 26. Qxa6 {[%clk 0:00:34]}  b4 {[%clk 0:00:16]} 27. Qb7+ {[%clk 0:00:26]}  Kd8 {[%clk 0:00:16]} 28. Qf7 {[%clk 0:00:25]}  h4 {[%clk 0:00:15]} 29. Bf5 {[%clk 0:00:21]}  Qd1+ {[%clk 0:00:14]} 30. Kg2 {[%clk 0:00:22]}  Be7 {[%clk 0:00:09]} 31. d6 {[%clk 0:00:22]}  Bxd6 {[%clk 0:00:09]} 32. Qd7# {[%clk 0:00:22]} 1-0


[Site "https://www.chess.com"]

[Event "Titled Tuesday Blitz August 08 Early 2023"]
[White "Pranav Anand"]
[Black "Alekseev, Evgeny"]
[WhiteFideId "46626786"]
[BlackFideId "4138147"]
[WhiteElo "2876"]
[BlackElo "2943"]
[Result "0-1"]
[Round "11"]
[TimeControl "180+1"]
[Date "2023.08.08"]
[WhiteClock "0:00:12"]
[BlackClock "0:00:12"]
[Board "13"]

1. Nf3 {[%clk 0:03:00]}  c5 {[%clk 0:02:59]} 2. e4 {[%clk 0:03:00]}  e6 {[%clk 0:02:57]} 3. g3 {[%clk 0:02:58]}  Nc6 {[%clk 0:02:56]} 4. Bg2 {[%clk 0:02:58]}  Nf6 {[%clk 0:02:54]} 5. Qe2 {[%clk 0:02:58]}  e5 {[%clk 0:02:51]} 6. O-O {[%clk 0:02:58]}  Be7 {[%clk 0:02:52]} 7. Na3 {[%clk 0:02:59]}  O-O {[%clk 0:02:51]} 8. Nc4 {[%clk 0:02:59]}  d6 {[%clk 0:02:51]} 9. a4 {[%clk 0:02:59]}  Re8 {[%clk 0:02:50]} 10. h3 {[%clk 0:02:58]}  Bf8 {[%clk 0:02:49]} 11. d3 {[%clk 0:02:56]}  h6 {[%clk 0:02:48]} 12. c3 {[%clk 0:02:51]}  Be6 {[%clk 0:02:48]} 13. Rd1 {[%clk 0:02:46]}  g6 {[%clk 0:02:44]} 14. Bd2 {[%clk 0:02:42]}  Bg7 {[%clk 0:02:43]} 15. b4 {[%clk 0:02:35]}  b6 {[%clk 0:02:30]} 16. bxc5 {[%clk 0:02:22]}  bxc5 {[%clk 0:02:29]} 17. Rdb1 {[%clk 0:02:06]}  Qc7 {[%clk 0:02:20]} 18. Ne1 {[%clk 0:01:56]}  Rab8 {[%clk 0:02:14]} 19. Nc2 {[%clk 0:01:55]}  d5 {[%clk 0:02:01]} 20. exd5 {[%clk 0:01:52]}  Nxd5 {[%clk 0:01:53]} 21. N2e3 {[%clk 0:01:51]}  Nde7 {[%clk 0:01:46]} 22. Rb5 {[%clk 0:01:48]}  Qd7 {[%clk 0:01:34]} 23. Rxc5 {[%clk 0:01:45]}  Rbd8 {[%clk 0:01:19]} 24. Rb1 {[%clk 0:01:39]}  Bxh3 {[%clk 0:01:14]} 25. Be4 {[%clk 0:01:28]}  Be6 {[%clk 0:01:09]} 26. Qf3 {[%clk 0:01:15]}  Rc8 {[%clk 0:01:03]} 27. Nd5 {[%clk 0:00:58]}  f5 {[%clk 0:00:54]} 28. Nxe7+ {[%clk 0:00:53]}  Nxe7 {[%clk 0:00:54]} 29. Rxc8 {[%clk 0:00:36]}  Rxc8 {[%clk 0:00:53]} 30. Bb7 {[%clk 0:00:25]}  Rd8 {[%clk 0:00:43]} 31. Na5 {[%clk 0:00:17]}  e4 {[%clk 0:00:36]} 32. Qe2 {[%clk 0:00:15]}  Qxd3 {[%clk 0:00:32]} 33. Qxd3 {[%clk 0:00:15]}  Rxd3 {[%clk 0:00:30]} 34. Be3 {[%clk 0:00:14]}  Bxc3 {[%clk 0:00:30]} 35. Nc6 {[%clk 0:00:15]}  Nxc6 {[%clk 0:00:29]} 36. Bxc6 {[%clk 0:00:15]}  Bd4 {[%clk 0:00:27]} 37. Bxh6 {[%clk 0:00:15]}  Rxg3+ {[%clk 0:00:26]} 38. Kh2 {[%clk 0:00:15]}  Rf3 {[%clk 0:00:24]} 39. Rb8+ {[%clk 0:00:15]}  Kf7 {[%clk 0:00:22]} 40. Rb7+ {[%clk 0:00:13]}  Kg8 {[%clk 0:00:22]} 41. Be8 {[%clk 0:00:12]}  Rxf2+ {[%clk 0:00:20]} 42. Kg3 {[%clk 0:00:12]}  f4+ {[%clk 0:00:17]} 43. Bxf4 {[%clk 0:00:11]}  Rf3+ {[%clk 0:00:17]} 44. Kh4 {[%clk 0:00:12]}  Rxf4+ {[%clk 0:00:17]} 45. Kg5 {[%clk 0:00:13]}  Rf8 {[%clk 0:00:15]} 46. Bxg6 {[%clk 0:00:13]}  Be3+ {[%clk 0:00:14]} 47. Kh4 {[%clk 0:00:12]}  Bf5 {[%clk 0:00:12]} 48. Rc7 {[%clk 0:00:12]} 0-1


[Site "https://www.chess.com"]

[Event "Titled Tuesday Blitz August 08 Early 2023"]
[White "Adewumi, Tanitoluwa"]
[Black "Kamsky, Gata"]
[WhiteFideId "30966396"]
[BlackFideId "2000024"]
[WhiteElo "2765"]
[BlackElo "2952"]
[Result "1-0"]
[Round "11"]
[TimeControl "180+1"]
[Date "2023.08.08"]
[WhiteClock "0:00:02"]
[BlackClock "0:00:00"]
[Board "15"]

1. e4 {[%clk 0:02:51]}  c5 {[%clk 0:02:54]} 2. Nf3 {[%clk 0:02:51]}  e6 {[%clk 0:02:53]} 3. c3 {[%clk 0:02:50]}  Nf6 {[%clk 0:02:52]} 4. e5 {[%clk 0:02:50]}  Nd5 {[%clk 0:02:52]} 5. Bc4 {[%clk 0:02:49]}  Nb6 {[%clk 0:02:51]} 6. Bb3 {[%clk 0:02:49]}  d6 {[%clk 0:02:42]} 7. exd6 {[%clk 0:02:48]}  Bxd6 {[%clk 0:02:41]} 8. O-O {[%clk 0:02:49]}  O-O {[%clk 0:02:39]} 9. d4 {[%clk 0:02:49]}  cxd4 {[%clk 0:02:37]} 10. Qxd4 {[%clk 0:02:37]}  Nc6 {[%clk 0:02:35]} 11. Qe4 {[%clk 0:02:35]}  Nd7 {[%clk 0:02:24]} 12. Bc2 {[%clk 0:02:15]}  Nf6 {[%clk 0:02:08]} 13. Qh4 {[%clk 0:02:14]}  Ne7 {[%clk 0:02:07]} 14. Rd1 {[%clk 0:02:01]}  Qc7 {[%clk 0:02:00]} 15. Bg5 {[%clk 0:01:39]}  Ng6 {[%clk 0:01:58]} 16. Bxg6 {[%clk 0:01:33]}  fxg6 {[%clk 0:01:58]} 17. Nbd2 {[%clk 0:01:30]}  h6 {[%clk 0:01:39]} 18. Bxf6 {[%clk 0:01:29]}  Rxf6 {[%clk 0:01:39]} 19. Ne4 {[%clk 0:01:30]}  Rf4 {[%clk 0:01:38]} 20. Qg3 {[%clk 0:01:30]}  Be7 {[%clk 0:01:17]} 21. Qxg6 {[%clk 0:01:17]}  e5 {[%clk 0:01:16]} 22. Ng3 {[%clk 0:01:03]}  Bg4 {[%clk 0:00:24]} 23. Nh5 {[%clk 0:00:43]}  Bxh5 {[%clk 0:00:24]} 24. Qxh5 {[%clk 0:00:44]}  e4 {[%clk 0:00:23]} 25. Qd5+ {[%clk 0:00:33]}  Kh7 {[%clk 0:00:22]} 26. Nd4 {[%clk 0:00:27]}  Qb6 {[%clk 0:00:21]} 27. g3 {[%clk 0:00:24]}  Rg4 {[%clk 0:00:18]} 28. h3 {[%clk 0:00:19]}  Rg6 {[%clk 0:00:17]} 29. Qxe4 {[%clk 0:00:19]}  Bc5 {[%clk 0:00:16]} 30. b4 {[%clk 0:00:15]}  Bxd4 {[%clk 0:00:16]} 31. Rxd4 {[%clk 0:00:16]}  a5 {[%clk 0:00:15]} 32. Re1 {[%clk 0:00:09]}  Qc6 {[%clk 0:00:12]} 33. Qd3 {[%clk 0:00:05]}  axb4 {[%clk 0:00:11]} 34. Rxb4 {[%clk 0:00:02]}  Rxa2 {[%clk 0:00:09]} 35. Rg4 {[%clk 0:00:02]}  Ra5 {[%clk 0:00:06]} 36. Rxg6 {[%clk 0:00:02]}  Qxg6 {[%clk 0:00:06]} 37. Qd4 {[%clk 0:00:03]}  Rf5 {[%clk 0:00:00]} 38. Re7 {[%clk 0:00:02]} 1-0


[Site "https://www.chess.com"]

[Event "Titled Tuesday Blitz August 08 Early 2023"]
[White "Nazari, Arad"]
[Black "Shimanov, Aleksandr"]
[WhiteFideId "12577324"]
[BlackFideId "4198603"]
[WhiteElo "2752"]
[BlackElo "2915"]
[Result "0-1"]
[Round "11"]
[TimeControl "180+1"]
[Date "2023.08.08"]
[WhiteClock "0:00:05"]
[BlackClock "0:00:28"]
[Board "17"]

1. e4 {[%clk 0:03:00]}  e6 {[%clk 0:02:50]} 2. d4 {[%clk 0:03:00]}  d5 {[%clk 0:02:50]} 3. e5 {[%clk 0:03:01]}  c5 {[%clk 0:02:49]} 4. c3 {[%clk 0:03:02]}  Nc6 {[%clk 0:02:48]} 5. Nf3 {[%clk 0:03:01]}  Nge7 {[%clk 0:02:49]} 6. Na3 {[%clk 0:03:00]}  Nf5 {[%clk 0:02:47]} 7. Nc2 {[%clk 0:02:59]}  Qa5 {[%clk 0:02:48]} 8. a3 {[%clk 0:02:51]}  Nfxd4 {[%clk 0:02:45]} 9. Nfxd4 {[%clk 0:02:42]}  Nxd4 {[%clk 0:02:45]} 10. Nxd4 {[%clk 0:02:43]}  cxd4 {[%clk 0:02:44]} 11. b4 {[%clk 0:02:43]}  Qc7 {[%clk 0:02:26]} 12. Qxd4 {[%clk 0:02:40]}  Be7 {[%clk 0:02:20]} 13. Bd3 {[%clk 0:02:29]}  O-O {[%clk 0:02:20]} 14. O-O {[%clk 0:02:30]}  Bd7 {[%clk 0:02:20]} 15. Be3 {[%clk 0:02:15]}  a6 {[%clk 0:01:47]} 16. c4 {[%clk 0:02:01]}  dxc4 {[%clk 0:01:47]} 17. Bxc4 {[%clk 0:02:02]}  Bc6 {[%clk 0:01:46]} 18. Rac1 {[%clk 0:01:59]}  Rad8 {[%clk 0:01:43]} 19. Qf4 {[%clk 0:01:58]}  Rd7 {[%clk 0:01:42]} 20. Rfe1 {[%clk 0:01:55]}  Rfd8 {[%clk 0:01:41]} 21. h4 {[%clk 0:01:53]}  b5 {[%clk 0:01:27]} 22. Be2 {[%clk 0:01:41]}  Qb7 {[%clk 0:01:26]} 23. Qg3 {[%clk 0:01:39]}  Kh8 {[%clk 0:01:13]} 24. h5 {[%clk 0:01:36]}  h6 {[%clk 0:01:12]} 25. Rc3 {[%clk 0:01:32]}  Be4 {[%clk 0:01:09]} 26. Rec1 {[%clk 0:01:30]}  Qd5 {[%clk 0:01:06]} 27. Bb6 {[%clk 0:01:01]}  Re8 {[%clk 0:01:04]} 28. Rd1 {[%clk 0:00:52]}  Qb7 {[%clk 0:01:03]} 29. Rxd7 {[%clk 0:00:38]}  Qxd7 {[%clk 0:01:04]} 30. Qe3 {[%clk 0:00:37]}  Qd5 {[%clk 0:00:51]} 31. f3 {[%clk 0:00:33]}  Bf5 {[%clk 0:00:51]} 32. g4 {[%clk 0:00:21]}  Bh7 {[%clk 0:00:51]} 33. Qd4 {[%clk 0:00:22]}  Qa2 {[%clk 0:00:36]} 34. Kf1 {[%clk 0:00:17]}  Bh4 {[%clk 0:00:30]} 35. Qd7 {[%clk 0:00:10]}  Rg8 {[%clk 0:00:29]} 36. Qd3 {[%clk 0:00:05]}  Bxd3 {[%clk 0:00:28]} 0-1


[Site "https://www.chess.com"]